[Event "*** Titled Tuesday Blitz"]
[Site "Chess.com"]
[Date "2020.04.21"]
[Round "3"]
[White "Lion-Al-Messi"]
[Black "mirochka"]
[Result "1-0"]
[WhiteElo "2429"]
[BlackElo "2159"]
[TimeControl "180+1"]
[EndTime "10:27:50 PDT"]
[Termination "Lion-Al-Messi won on time"]

1. d4 {[%clk 0:03:00.9]} 1... Nf6 {[%clk 0:02:58.8]} 2. Nf3 {[%clk 0:03:01.8]}
2... d5 {[%clk 0:02:58]} 3. Nc3 {[%clk 0:03:00.2]} 3... Bf5 {[%clk 0:02:47.2]}
4. Bg5 {[%clk 0:02:52.1]} 4... c6 {[%clk 0:02:45]} 5. e3 {[%clk 0:02:48.4]} 5...
Nbd7 {[%clk 0:02:37.8]} 6. Bd3 {[%clk 0:02:47.7]} 6... Ne4 {[%clk 0:02:32.7]} 7.
Bxe4 {[%clk 0:02:38.1]} 7... dxe4 {[%clk 0:02:32]} 8. Nd2 {[%clk 0:02:38.1]}
8... h6 {[%clk 0:02:26.8]} 9. Bf4 {[%clk 0:02:37.5]} 9... g5 {[%clk 0:02:10]}
10. Bg3 {[%clk 0:02:36.9]} 10... Qa5 {[%clk 0:02:05.1]} 11. O-O {[%clk
0:02:32.4]} 11... Bg7 {[%clk 0:02:01.9]} 12. Ndxe4 {[%clk 0:02:30.1]} 12... O-O
{[%clk 0:01:52.8]} 13. a3 {[%clk 0:02:24.4]} 13... Bg6 {[%clk 0:01:47.6]} 14. b4
{[%clk 0:02:23.7]} 14... Qd8 {[%clk 0:01:43.2]} 15. Nc5 {[%clk 0:02:23.6]} 15...
Nxc5 {[%clk 0:01:38.1]} 16. bxc5 {[%clk 0:02:24.5]} 16... b5 {[%clk 0:01:20.2]}
17. Qf3 {[%clk 0:02:21.4]} 17... Qd7 {[%clk 0:01:13.8]} 18. h3 {[%clk
0:02:18.7]} 18... a5 {[%clk 0:01:08.9]} 19. Qe2 {[%clk 0:01:45.6]} 19... a4
{[%clk 0:01:07.5]} 20. Na2 {[%clk 0:01:41.9]} 20... f5 {[%clk 0:00:57.2]} 21.
Nb4 {[%clk 0:01:36.7]} 21... f4 {[%clk 0:00:51.5]} 22. Bh2 {[%clk 0:01:36.6]}
22... e5 {[%clk 0:00:36.5]} 23. Rad1 {[%clk 0:01:28.8]} 23... e4 {[%clk
0:00:29.1]} 24. f3 {[%clk 0:01:23.4]} 24... exf3 {[%clk 0:00:19.7]} 25. Qxf3
{[%clk 0:01:21.3]} 25... Bxc2 {[%clk 0:00:17.8]} 26. Nxc2 {[%clk 0:01:20.6]}
26... fxe3 {[%clk 0:00:14.9]} 27. Qxe3 {[%clk 0:01:19.7]} 27... Rae8 {[%clk
0:00:13.1]} 28. Qd3 {[%clk 0:01:19.7]} 28... Rxf1+ {[%clk 0:00:09.8]} 29. Rxf1
{[%clk 0:01:20.6]} 29... Qd5 {[%clk 0:00:06.6]} 30. Bd6 {[%clk 0:01:07.3]} 30...
Re4 {[%clk 0:00:05.3]} 31. Kh1 {[%clk 0:01:04]} 31... Qe6 {[%clk 0:00:02.7]} 32.
d5 {[%clk 0:01:01.5]} 1-0

[Event "*** Titled Tuesday Blitz"]
[Site "Chess.com"]
[Date "2020.04.21"]
[Round "3"]
[White "ChessWarrior7197"]
[Black "Shahinyan_ChessMood"]
[Result "1-0"]
[WhiteElo "2886"]
[BlackElo "2656"]
[TimeControl "180+1"]
[EndTime "10:27:52 PDT"]
[Termination "ChessWarrior7197 won by resignation"]

1. e4 {[%clk 0:03:00.9]} 1... d6 {[%clk 0:02:56.6]} 2. d4 {[%clk 0:03:00.4]}
2... Nf6 {[%clk 0:02:56.8]} 3. Nc3 {[%clk 0:02:57.5]} 3... e5 {[%clk 0:02:56.8]}
4. Nf3 {[%clk 0:02:53.4]} 4... Nbd7 {[%clk 0:02:55.1]} 5. Bc4 {[%clk 0:02:52.6]}
5... Be7 {[%clk 0:02:54.1]} 6. O-O {[%clk 0:02:51.7]} 6... O-O {[%clk
0:02:42.3]} 7. a4 {[%clk 0:02:51.7]} 7... c6 {[%clk 0:02:40.3]} 8. a5 {[%clk
0:02:52.2]} 8... Qc7 {[%clk 0:02:30.6]} 9. h3 {[%clk 0:02:51.4]} 9... Rb8 {[%clk
0:02:30.6]} 10. Be3 {[%clk 0:02:50.8]} 10... b5 {[%clk 0:02:27.7]} 11. axb6
{[%clk 0:02:49.8]} 11... axb6 {[%clk 0:02:28.6]} 12. Bb3 {[%clk 0:02:36.5]}
12... h6 {[%clk 0:02:23.9]} 13. Nh4 {[%clk 0:02:33.6]} 13... exd4 {[%clk
0:02:10]} 14. Bxd4 {[%clk 0:02:31]} 14... Nc5 {[%clk 0:02:10.9]} 15. Bxc5 {[%clk
0:02:14.7]} 15... dxc5 {[%clk 0:01:52.4]} 16. e5 {[%clk 0:02:11.9]} 16... Nd5
{[%clk 0:01:37.4]} 17. Nxd5 {[%clk 0:01:57]} 17... cxd5 {[%clk 0:01:34.8]} 18.
Nf3 {[%clk 0:01:56.7]} 18... Be6 {[%clk 0:01:31.5]} 19. Bxd5 {[%clk 0:01:53.9]}
19... Rfd8 {[%clk 0:01:10.1]} 20. c4 {[%clk 0:01:52.5]} 20... b5 {[%clk
0:01:10.5]} 21. b3 {[%clk 0:01:49.9]} 21... bxc4 {[%clk 0:01:10.4]} 22. bxc4
{[%clk 0:01:50.3]} 22... Rb4 {[%clk 0:01:10.8]} 23. Rc1 {[%clk 0:01:34.8]} 23...
Rd7 {[%clk 0:01:05]} 24. Qd3 {[%clk 0:01:25.3]} 24... Qd8 {[%clk 0:00:52.1]} 25.
Rfd1 {[%clk 0:01:24.4]} 25... Rxc4 {[%clk 0:00:06.3]} 26. Qxc4 {[%clk 0:01:21]}
26... Bxd5 {[%clk 0:00:06.8]} 27. Qa4 {[%clk 0:01:12]} 27... Be6 {[%clk
0:00:04.8]} 28. Rxd7 {[%clk 0:01:10.1]} 28... Bxd7 {[%clk 0:00:05.7]} 29. Qa7
{[%clk 0:01:09.5]} 29... Be6 {[%clk 0:00:05.4]} 30. Rb1 {[%clk 0:01:09.2]} 30...
Bf8 {[%clk 0:00:05.8]} 31. Rb8 {[%clk 0:01:06.6]} 31... Qd1+ {[%clk 0:00:06.2]}
32. Kh2 {[%clk 0:01:06.9]} 32... Qd5 {[%clk 0:00:06.6]} 33. Qe7 {[%clk 0:01:04]}
1-0

[Event "*** Titled Tuesday Blitz"]
[Site "Chess.com"]
[Date "2020.04.21"]
[Round "3"]
[White "kenta1234"]
[Black "Alopekos"]
[Result "1-0"]
[WhiteElo "2601"]
[BlackElo "2383"]
[TimeControl "180+1"]
[EndTime "10:27:52 PDT"]
[Termination "kenta1234 won on time"]

1. Nf3 {[%clk 0:03:00.9]} 1... Nf6 {[%clk 0:02:59.1]} 2. b3 {[%clk 0:03:00.1]}
2... e6 {[%clk 0:02:52.8]} 3. Bb2 {[%clk 0:03:01]} 3... d5 {[%clk 0:02:52.8]} 4.
g3 {[%clk 0:03:00.7]} 4... Be7 {[%clk 0:02:53.3]} 5. Bg2 {[%clk 0:03:00.6]} 5...
O-O {[%clk 0:02:53.9]} 6. O-O {[%clk 0:02:59.2]} 6... c5 {[%clk 0:02:47.9]} 7.
d3 {[%clk 0:02:56.4]} 7... Nc6 {[%clk 0:02:47.5]} 8. Nbd2 {[%clk 0:02:57.3]}
8... b5 {[%clk 0:02:37.6]} 9. a4 {[%clk 0:02:55.7]} 9... bxa4 {[%clk 0:02:35.2]}
10. Rxa4 {[%clk 0:02:55.3]} 10... Bd7 {[%clk 0:02:34.3]} 11. e4 {[%clk
0:02:51.9]} 11... Nb4 {[%clk 0:02:14.2]} 12. Ra3 {[%clk 0:02:50.8]} 12... Bc6
{[%clk 0:02:06]} 13. Ne5 {[%clk 0:02:45.6]} 13... Bb7 {[%clk 0:02:06]} 14. c3
{[%clk 0:02:42.4]} 14... Nc6 {[%clk 0:01:58]} 15. Nxc6 {[%clk 0:02:42.6]} 15...
Bxc6 {[%clk 0:01:58.9]} 16. e5 {[%clk 0:02:38.5]} 16... Nd7 {[%clk 0:01:57.9]}
17. c4 {[%clk 0:02:38.3]} 17... Qc7 {[%clk 0:01:17.5]} 18. Re1 {[%clk 0:02:34]}
18... d4 {[%clk 0:01:17.4]} 19. Bxc6 {[%clk 0:02:33.5]} 19... Qxc6 {[%clk
0:01:18.3]} 20. f4 {[%clk 0:02:32.1]} 20... Rfb8 {[%clk 0:01:11]} 21. Qf3 {[%clk
0:02:30.6]} 21... Qxf3 {[%clk 0:00:57.5]} 22. Nxf3 {[%clk 0:02:31.5]} 22... Rb7
{[%clk 0:00:58.1]} 23. Rea1 {[%clk 0:02:30.9]} 23... Nb8 {[%clk 0:00:51.7]} 24.
Kf2 {[%clk 0:02:25.6]} 24... Nc6 {[%clk 0:00:50.8]} 25. Ke2 {[%clk 0:02:26]}
25... Rab8 {[%clk 0:00:45.5]} 26. Nd2 {[%clk 0:02:24.8]} 26... a5 {[%clk
0:00:25.9]} 27. Ra4 {[%clk 0:02:13.6]} 27... f6 {[%clk 0:00:23.9]} 28. exf6
{[%clk 0:02:09.1]} 28... gxf6 {[%clk 0:00:24.8]} 29. Rxa5 {[%clk 0:02:04.8]}
29... Nxa5 {[%clk 0:00:23.1]} 30. Rxa5 {[%clk 0:02:05.7]} 30... Kf7 {[%clk
0:00:22.3]} 31. Ba3 {[%clk 0:02:05.4]} 31... Rc7 {[%clk 0:00:19.3]} 32. Kd1
{[%clk 0:02:05.3]} 32... Rbb7 {[%clk 0:00:16.4]} 33. Ne4 {[%clk 0:01:56.8]}
33... Rxb3 {[%clk 0:00:14.9]} 34. Kc2 {[%clk 0:01:57.3]} 34... Rbb7 {[%clk
0:00:09]} 35. Bxc5 {[%clk 0:01:50.6]} 35... Bxc5 {[%clk 0:00:08.5]} 36. Nxc5
{[%clk 0:01:46.6]} 36... Ra7 {[%clk 0:00:08.7]} 37. Rb5 {[%clk 0:01:47]} 37...
Ra2+ {[%clk 0:00:08.4]} 38. Kb3 {[%clk 0:01:47.1]} 38... Rxh2 {[%clk 0:00:08.8]}
39. Ne4 {[%clk 0:01:46]} 39... h5 {[%clk 0:00:04.4]} 40. c5 {[%clk 0:01:45.3]}
40... Re2 {[%clk 0:00:02.7]} 41. Kc4 {[%clk 0:01:44.9]} 41... Re1 {[%clk
0:00:02.5]} 42. Kxd4 {[%clk 0:01:45]} 42... Rc1 {[%clk 0:00:02.5]} 43. Rb6
{[%clk 0:01:36.9]} 43... Rd1 {[%clk 0:00:01.5]} 44. Nd6+ {[%clk 0:01:35.3]}
44... Kg6 {[%clk 0:00:01.2]} 45. Ne4 {[%clk 0:01:33.4]} 45... Rd7+ {[%clk
0:00:01.3]} 46. Rd6 {[%clk 0:01:31.6]} 46... Rxd6+ {[%clk 0:00:01.8]} 47. Nxd6
{[%clk 0:01:31.1]} 1-0

[Event "*** Titled Tuesday Blitz"]
[Site "Chess.com"]
[Date "2020.04.21"]
[Round "3"]
[White "dpruess"]
[Black "Dr-Bassem"]
[Result "0-1"]
[WhiteElo "2455"]
[BlackElo "2792"]
[TimeControl "180+1"]
[EndTime "10:27:54 PDT"]
[Termination "Dr-Bassem won by resignation"]

1. e4 {[%clk 0:03:00.9]} 1... e5 {[%clk 0:02:59.7]} 2. f4 {[%clk 0:03:00]} 2...
exf4 {[%clk 0:02:58.9]} 3. Nf3 {[%clk 0:02:59.3]} 3... g5 {[%clk 0:02:58.7]} 4.
d4 {[%clk 0:02:58.7]} 4... Bg7 {[%clk 0:02:58.7]} 5. h4 {[%clk 0:02:55]} 5... h6
{[%clk 0:02:53.2]} 6. hxg5 {[%clk 0:02:54.9]} 6... hxg5 {[%clk 0:02:54.1]} 7.
Rxh8 {[%clk 0:02:54.9]} 7... Bxh8 {[%clk 0:02:55]} 8. g3 {[%clk 0:02:55.3]} 8...
g4 {[%clk 0:02:42.9]} 9. Nh2 {[%clk 0:02:54.2]} 9... d5 {[%clk 0:02:08]} 10.
Bxf4 {[%clk 0:02:28.9]} 10... dxe4 {[%clk 0:02:07.8]} 11. c3 {[%clk 0:02:28.8]}
11... Nf6 {[%clk 0:02:00.8]} 12. Nd2 {[%clk 0:02:22.3]} 12... Nh5 {[%clk
0:01:51.3]} 13. Qe2 {[%clk 0:00:24]} 13... Nxf4 {[%clk 0:01:46.8]} 14. Qxe4+
{[%clk 0:00:24]} 14... Ne6 {[%clk 0:01:22]} 15. d5 {[%clk 0:00:24]} 15... Qe7
{[%clk 0:01:00.1]} 16. dxe6 {[%clk 0:00:23.4]} 16... Qxe6 {[%clk 0:01:00.3]} 17.
O-O-O {[%clk 0:00:22.9]} 17... Qxe4 {[%clk 0:00:58.3]} 18. Nxe4 {[%clk
0:00:23.8]} 18... Nc6 {[%clk 0:00:54.3]} 19. Bb5 {[%clk 0:00:22.1]} 19... a6
{[%clk 0:00:45.6]} 20. Bc4 {[%clk 0:00:17.5]} 20... Be5 {[%clk 0:00:40.6]} 21.
Re1 {[%clk 0:00:14.6]} 21... Bf5 {[%clk 0:00:30.6]} 22. Bd5 {[%clk 0:00:14.6]}
22... O-O-O {[%clk 0:00:27.2]} 23. Bxc6 {[%clk 0:00:14.7]} 23... bxc6 {[%clk
0:00:28.1]} 24. Ng5 {[%clk 0:00:11.1]} 24... Bxg3 {[%clk 0:00:26.6]} 0-1

[Event "*** Titled Tuesday Blitz"]
[Site "Chess.com"]
[Date "2020.04.21"]
[Round "3"]
[White "politeplayer"]
[Black "Nayemhaque22"]
[Result "0-1"]
[WhiteElo "2166"]
[BlackElo "2397"]
[TimeControl "180+1"]
[EndTime "10:27:55 PDT"]
[Termination "Nayemhaque22 won by checkmate"]

1. e4 {[%clk 0:03:00.9]} 1... c5 {[%clk 0:02:57.3]} 2. Nf3 {[%clk 0:02:59.6]}
2... d6 {[%clk 0:02:55.9]} 3. d4 {[%clk 0:03:00.1]} 3... cxd4 {[%clk 0:02:55.3]}
4. Nxd4 {[%clk 0:03:00.8]} 4... Nf6 {[%clk 0:02:53.9]} 5. f3 {[%clk 0:03:01.3]}
5... a6 {[%clk 0:02:52.5]} 6. c4 {[%clk 0:03:00.4]} 6... Nc6 {[%clk 0:02:50.4]}
7. Nc3 {[%clk 0:02:59.5]} 7... Qb6 {[%clk 0:02:43.9]} 8. Nc2 {[%clk 0:02:56.7]}
8... g6 {[%clk 0:02:38.6]} 9. Rb1 {[%clk 0:02:53.7]} 9... Bg7 {[%clk 0:02:37.4]}
10. Be3 {[%clk 0:02:51.2]} 10... Qc7 {[%clk 0:02:35]} 11. Be2 {[%clk 0:02:47.9]}
11... O-O {[%clk 0:02:34.5]} 12. O-O {[%clk 0:02:47.3]} 12... Be6 {[%clk
0:02:33.5]} 13. Nd5 {[%clk 0:02:41.8]} 13... Bxd5 {[%clk 0:02:26.4]} 14. cxd5
{[%clk 0:02:41.4]} 14... Ne5 {[%clk 0:02:26.1]} 15. Nd4 {[%clk 0:02:24.8]} 15...
Rac8 {[%clk 0:02:20.9]} 16. Qd2 {[%clk 0:02:07.7]} 16... Nc4 {[%clk 0:02:20]}
17. Bxc4 {[%clk 0:02:06.2]} 17... Qxc4 {[%clk 0:02:19.5]} 18. Rfc1 {[%clk
0:01:56.2]} 18... Qa4 {[%clk 0:02:18.6]} 19. b3 {[%clk 0:01:48.1]} 19... Qa3
{[%clk 0:02:15.4]} 20. h3 {[%clk 0:00:43.5]} 20... Nd7 {[%clk 0:02:12.1]} 21.
Nc2 {[%clk 0:00:28.2]} 21... Qxa2 {[%clk 0:02:07.7]} 22. Nb4 {[%clk 0:00:25.3]}
22... Qxd2 {[%clk 0:02:01.6]} 23. Bxd2 {[%clk 0:00:23.6]} 23... Bd4+ {[%clk
0:01:59.8]} 24. Kf1 {[%clk 0:00:21.6]} 24... Nc5 {[%clk 0:01:56.9]} 25. Ke2
{[%clk 0:00:17.1]} 25... Be5 {[%clk 0:01:42.9]} 26. Nd3 {[%clk 0:00:16.7]} 26...
Nxd3 {[%clk 0:01:41.7]} 27. Rxc8 {[%clk 0:00:17.2]} 27... Rxc8 {[%clk
0:01:40.3]} 28. Kxd3 {[%clk 0:00:17.3]} 28... f5 {[%clk 0:01:35.7]} 29. b4
{[%clk 0:00:17]} 29... fxe4+ {[%clk 0:01:30]} 30. fxe4 {[%clk 0:00:17.2]} 30...
b6 {[%clk 0:01:26.5]} 31. b5 {[%clk 0:00:15.8]} 31... a5 {[%clk 0:01:22.9]} 32.
Be3 {[%clk 0:00:15.9]} 32... Rc3+ {[%clk 0:01:17.6]} 33. Kd2 {[%clk 0:00:15.3]}
33... Ra3 {[%clk 0:01:16.3]} 34. Bxb6 {[%clk 0:00:14.9]} 34... Ra2+ {[%clk
0:01:16]} 35. Kd3 {[%clk 0:00:15]} 35... Rxg2 {[%clk 0:01:14.3]} 36. Ba7 {[%clk
0:00:15]} 36... Rg3+ {[%clk 0:01:12.3]} 37. Kc4 {[%clk 0:00:14.9]} 37... Rc3#
{[%clk 0:01:10.8]} 0-1

[Event "*** Titled Tuesday Blitz"]
[Site "Chess.com"]
[Date "2020.04.21"]
[Round "3"]
[White "Maitreia"]
[Black "MilanovicDan"]
[Result "0-1"]
[WhiteElo "2686"]
[BlackElo "2449"]
[TimeControl "180+1"]
[EndTime "10:27:56 PDT"]
[Termination "MilanovicDan won by checkmate"]

1. c4 {[%clk 0:03:00.9]} 1... c5 {[%clk 0:02:57.3]} 2. g3 {[%clk 0:03:01]} 2...
g6 {[%clk 0:02:49.9]} 3. Bg2 {[%clk 0:03:01.5]} 3... Bg7 {[%clk 0:02:50.2]} 4.
Nc3 {[%clk 0:03:02.2]} 4... Nc6 {[%clk 0:02:50]} 5. Nf3 {[%clk 0:03:02.9]} 5...
d6 {[%clk 0:02:50.1]} 6. O-O {[%clk 0:03:03]} 6... Nf6 {[%clk 0:02:48.2]} 7. a3
{[%clk 0:03:02.9]} 7... O-O {[%clk 0:02:47.4]} 8. Rb1 {[%clk 0:03:03.4]} 8...
Bf5 {[%clk 0:02:45.2]} 9. d3 {[%clk 0:03:03.3]} 9... Qd7 {[%clk 0:02:44.9]} 10.
b4 {[%clk 0:03:03.7]} 10... Rab8 {[%clk 0:02:34.7]} 11. e3 {[%clk 0:03:00.1]}
11... Bh3 {[%clk 0:02:31.8]} 12. Qb3 {[%clk 0:02:58.7]} 12... b6 {[%clk
0:02:28.2]} 13. Bb2 {[%clk 0:02:58.4]} 13... Bxg2 {[%clk 0:02:17.5]} 14. Kxg2
{[%clk 0:02:58.3]} 14... e6 {[%clk 0:02:00.3]} 15. Rbd1 {[%clk 0:02:52.1]} 15...
Qb7 {[%clk 0:01:50.2]} 16. Ne4 {[%clk 0:02:50]} 16... Ne8 {[%clk 0:01:43.9]} 17.
Bxg7 {[%clk 0:02:49.1]} 17... Kxg7 {[%clk 0:01:43.8]} 18. Qc3+ {[%clk
0:02:47.9]} 18... f6 {[%clk 0:01:40.8]} 19. bxc5 {[%clk 0:02:43.5]} 19... dxc5
{[%clk 0:01:34.7]} 20. Kg1 {[%clk 0:02:42.4]} 20... Rc8 {[%clk 0:01:29.6]} 21.
Rfe1 {[%clk 0:02:42.2]} 21... Qc7 {[%clk 0:01:17.4]} 22. d4 {[%clk 0:02:37.8]}
22... cxd4 {[%clk 0:01:15.8]} 23. exd4 {[%clk 0:02:38.7]} 23... Nd8 {[%clk
0:01:11]} 24. c5 {[%clk 0:02:37.6]} 24... Qc6 {[%clk 0:00:58.6]} 25. Qe3 {[%clk
0:02:28.6]} 25... Nf7 {[%clk 0:00:49.2]} 26. h4 {[%clk 0:02:24.2]} 26... Nc7
{[%clk 0:00:43.3]} 27. h5 {[%clk 0:02:20.8]} 27... Nd5 {[%clk 0:00:41.9]} 28.
Qd2 {[%clk 0:02:21.2]} 28... Rfd8 {[%clk 0:00:37.5]} 29. Qe2 {[%clk 0:02:04.1]}
29... g5 {[%clk 0:00:28.8]} 30. Qb2 {[%clk 0:01:53.6]} 30... h6 {[%clk
0:00:21.8]} 31. Qb1 {[%clk 0:01:53]} 31... f5 {[%clk 0:00:19.1]} 32. Nd6 {[%clk
0:01:49.1]} 32... Nxd6 {[%clk 0:00:17.1]} 33. Rxe6 {[%clk 0:01:49.7]} 33... Nc3
{[%clk 0:00:15.8]} 34. Qa1 {[%clk 0:01:42.5]} 34... Qxf3 {[%clk 0:00:15.4]} 35.
Rde1 {[%clk 0:01:34.2]} 35... Nde4 {[%clk 0:00:15.3]} 36. Qb2 {[%clk 0:01:26.9]}
36... Rxd4 {[%clk 0:00:14.9]} 37. Rg6+ {[%clk 0:01:27.8]} 37... Kh7 {[%clk
0:00:14.3]} 38. cxb6 {[%clk 0:01:28.7]} 38... Rd2 {[%clk 0:00:12.2]} 39. Qxd2
{[%clk 0:01:26.4]} 39... Nxd2 {[%clk 0:00:11.9]} 40. Re7+ {[%clk 0:01:27.3]}
40... Kh8 {[%clk 0:00:12.2]} 41. Rxh6+ {[%clk 0:01:18.2]} 41... Kg8 {[%clk
0:00:11.9]} 42. Rg6+ {[%clk 0:01:19.1]} 42... Kf8 {[%clk 0:00:12.1]} 43. Rxa7
{[%clk 0:01:20]} 43... Qd1+ {[%clk 0:00:12.1]} 44. Kh2 {[%clk 0:01:20.4]} 44...
Nf1+ {[%clk 0:00:11.6]} 45. Kg2 {[%clk 0:01:20.1]} 45... Qd5+ {[%clk 0:00:11.7]}
46. Kxf1 {[%clk 0:01:19.2]} 46... Qh1# {[%clk 0:00:11.5]} 0-1

[Event "*** Titled Tuesday Blitz"]
[Site "Chess.com"]
[Date "2020.04.21"]
[Round "3"]
[White "joppie2"]
[Black "Philosopherrr"]
[Result "1-0"]
[WhiteElo "2923"]
[BlackElo "2474"]
[TimeControl "180+1"]
[EndTime "10:27:57 PDT"]
[Termination "joppie2 won by resignation"]

1. e4 {[%clk 0:02:56.2]} 1... e5 {[%clk 0:02:59.4]} 2. Nf3 {[%clk 0:02:55.4]}
2... Nc6 {[%clk 0:02:59.2]} 3. Bb5 {[%clk 0:02:56.1]} 3... a6 {[%clk 0:02:59]}
4. Ba4 {[%clk 0:02:56.7]} 4... Nf6 {[%clk 0:02:59.1]} 5. O-O {[%clk 0:02:57.1]}
5... Be7 {[%clk 0:02:59.1]} 6. Re1 {[%clk 0:02:56.2]} 6... b5 {[%clk 0:02:59.5]}
7. Bb3 {[%clk 0:02:56.7]} 7... d6 {[%clk 0:02:59.8]} 8. c3 {[%clk 0:02:56.7]}
8... O-O {[%clk 0:02:59.6]} 9. h3 {[%clk 0:02:57.4]} 9... Bb7 {[%clk 0:03:00]}
10. d4 {[%clk 0:02:56.3]} 10... Re8 {[%clk 0:03:00.8]} 11. Nbd2 {[%clk
0:02:55.3]} 11... exd4 {[%clk 0:03:01.3]} 12. cxd4 {[%clk 0:02:54.7]} 12... Nd7
{[%clk 0:03:01.8]} 13. Nf1 {[%clk 0:02:52.8]} 13... Na5 {[%clk 0:03:01.7]} 14.
Bc2 {[%clk 0:02:52.6]} 14... Bf6 {[%clk 0:03:02.1]} 15. Ng3 {[%clk 0:02:52.6]}
15... g6 {[%clk 0:03:02.2]} 16. Bh6 {[%clk 0:02:50.2]} 16... c5 {[%clk
0:02:53.2]} 17. e5 {[%clk 0:02:45.7]} 17... dxe5 {[%clk 0:02:26.8]} 18. dxc5
{[%clk 0:02:44.8]} 18... e4 {[%clk 0:01:55.1]} 19. Bxe4 {[%clk 0:02:35.8]} 19...
Nxc5 {[%clk 0:01:41.1]} 20. Bxb7 {[%clk 0:02:20.6]} 20... Naxb7 {[%clk
0:01:20.5]} 21. Qc2 {[%clk 0:02:06.7]} 21... Qd3 {[%clk 0:01:17.2]} 22. Rec1
{[%clk 0:01:56.2]} 22... Rac8 {[%clk 0:01:06.7]} 23. h4 {[%clk 0:01:33.1]} 23...
Qxc2 {[%clk 0:00:57.4]} 24. Rxc2 {[%clk 0:01:34]} 24... Na4 {[%clk 0:00:50.5]}
25. Ne4 {[%clk 0:01:34.2]} 25... Bxb2 {[%clk 0:00:45.9]} 26. Re1 {[%clk
0:01:33.5]} 26... f5 {[%clk 0:00:39.8]} 27. Rxc8 {[%clk 0:01:31.6]} 27... Rxc8
{[%clk 0:00:39.3]} 28. Neg5 {[%clk 0:01:31.9]} 28... Bf6 {[%clk 0:00:34.7]} 29.
Re6 {[%clk 0:01:30.7]} 29... Bxg5 {[%clk 0:00:17.6]} 30. Nxg5 {[%clk 0:01:29.1]}
30... Nac5 {[%clk 0:00:13.3]} 31. Re7 {[%clk 0:01:28.7]} 31... Nd6 {[%clk
0:00:12.2]} 32. Rg7+ {[%clk 0:01:24.6]} 32... Kh8 {[%clk 0:00:12.2]} 33. Rxh7+
{[%clk 0:01:23.1]} 33... Kg8 {[%clk 0:00:12.3]} 34. Rg7+ {[%clk 0:01:23.7]}
34... Kh8 {[%clk 0:00:12.6]} 35. Rxg6 {[%clk 0:01:24.3]} 35... Nce4 {[%clk
0:00:11]} 36. f3 {[%clk 0:01:21.3]} 36... Nxg5 {[%clk 0:00:07.6]} 37. Bxg5
{[%clk 0:01:22.2]} 37... Nc4 {[%clk 0:00:06.4]} 38. Rxa6 {[%clk 0:01:19.5]} 1-0

[Event "*** Titled Tuesday Blitz"]
[Site "Chess.com"]
[Date "2020.04.21"]
[Round "3"]
[White "adriangschnitzer"]
[Black "Ellaijio_B"]
[Result "0-1"]
[WhiteElo "2424"]
[BlackElo "2670"]
[TimeControl "180+1"]
[EndTime "10:27:57 PDT"]
[Termination "Ellaijio_B won on time"]

1. e4 {[%clk 0:03:00.9]} 1... c5 {[%clk 0:02:35.8]} 2. Nf3 {[%clk 0:03:00.1]}
2... e6 {[%clk 0:02:35.8]} 3. d4 {[%clk 0:03:00.6]} 3... cxd4 {[%clk 0:02:36.7]}
4. Nxd4 {[%clk 0:03:01.5]} 4... a6 {[%clk 0:02:37.2]} 5. Nc3 {[%clk 0:03:01.8]}
5... b5 {[%clk 0:02:37.1]} 6. Bd3 {[%clk 0:03:01.8]} 6... Qb6 {[%clk 0:02:37.5]}
7. Nb3 {[%clk 0:02:54.7]} 7... Qc7 {[%clk 0:02:37.3]} 8. O-O {[%clk 0:02:53.6]}
8... Bb7 {[%clk 0:02:37.5]} 9. Re1 {[%clk 0:02:53.4]} 9... d6 {[%clk 0:02:35.9]}
10. a4 {[%clk 0:02:49.9]} 10... b4 {[%clk 0:02:34.5]} 11. Nd5 {[%clk 0:02:49.8]}
11... exd5 {[%clk 0:02:33.4]} 12. exd5+ {[%clk 0:02:50.7]} 12... Be7 {[%clk
0:02:34]} 13. Qg4 {[%clk 0:02:46.3]} 13... Kf8 {[%clk 0:02:32]} 14. Nd4 {[%clk
0:02:28]} 14... Nf6 {[%clk 0:02:17.9]} 15. Qg3 {[%clk 0:02:17.2]} 15... Bc8
{[%clk 0:02:07]} 16. Bf5 {[%clk 0:01:56.6]} 16... h5 {[%clk 0:01:59.9]} 17. Bf4
{[%clk 0:01:26.5]} 17... h4 {[%clk 0:01:53.8]} 18. Qh3 {[%clk 0:01:01.3]} 18...
Nxd5 {[%clk 0:01:44.5]} 19. Bxc8 {[%clk 0:00:55.5]} 19... Nxf4 {[%clk
0:01:35.8]} 20. Qf5 {[%clk 0:00:45.2]} 20... Nc6 {[%clk 0:01:20.2]} 21. Qxf4
{[%clk 0:00:25.9]} 21... Nxd4 {[%clk 0:01:16.2]} 22. Qxd4 {[%clk 0:00:17]} 22...
Rxc8 {[%clk 0:01:12.6]} 23. Re4 {[%clk 0:00:07.6]} 23... h3 {[%clk 0:00:57.1]}
24. Rae1 {[%clk 0:00:05.9]} 24... Bf6 {[%clk 0:00:53.3]} 25. Qxb4 {[%clk
0:00:04.8]} 25... Qc6 {[%clk 0:00:53.7]} 26. gxh3 {[%clk 0:00:01.1]} 26... Rh5
{[%clk 0:00:50]} 27. Qd2 {[%clk 0:00:01.5]} 27... Kg8 {[%clk 0:00:47]} 0-1